bitfinex-derivatives/quotes_SOLF0:USTF0_20251026
["timestamp","ask_amount","ask_price","bid_price","bid_amount"]
[1761484857490,7.95772914,198.08,198.07,2.61]
[1761484857882,4.32390486,198.08,198.07,2.61]
[1761484858089,4.72037155,198.12,198.07,2.61]
[1761484858090,7.95772914,198.1,198.07,2.61]
[1761484858293,7.95772914,198.09,198.07,2.61]
[1761484858499,7.95772914,198.08,198.07,2.61]
[1761484858790,4.32390486,198.08,198.07,2.61]
[1761484858998,7.95772914,198.1,198.07,2.61]
[1761484859184,7.95772914,198.09,198.07,2.61]
[1761484859388,4.72037155,198.13,198.07,2.61]
[1761484859586,7.96250342,198.12,198.07,2.61]
[1761484859887,7.96250342,198.11,198.07,2.61]
[1761484860084,3.63585834,198.1,198.07,2.61]
[1761484860286,3.63585834,198.13,198.07,2.61]
[1761484860493,4.72037155,198.15,198.07,2.61]
[1761484860494,3.63585834,198.12,198.07,2.61]
[1761484860686,4.72037155,198.16,198.07,2.61]
[1761484860892,3.87061131,198.18,198.08,2.61]
[1761484861093,145.13059719,198.19,198.09,2.61]
[1761484861285,145.13059719,198.19,198.12,4.5424]
[1761484861485,145.13059719,198.19,198.13,2.61]
[1761484867790,4.72037155,198.25,198.13,2.61]
[1761484869291,4.72037155,198.26,198.13,2.61]
[1761484871801,4.72037155,198.27,198.13,2.61]
[1761484873904,4.72037155,198.26,198.13,2.61]
[1761484874103,4.72037155,198.27,198.13,2.61]
[1761484878308,4.72037155,198.26,198.13,2.61]
[1761484878695,4.72037155,198.23,198.08,2.67]
[1761484878894,4.72037155,198.22,198.08,2.67]
[1761484879099,4.72037155,198.23,198.08,2.67]
[1761484880902,4.72037155,198.24,198.08,2.67]
[1761484881406,4.72037155,198.23,198.08,2.67]
[1761484882203,4.72037155,198.23,198.1,2.67]
[1761484882403,4.72037155,198.27,198.1,2.67]
[1761484883015,4.72037155,198.28,198.06,19.61571994]
[1761484883213,4.72037155,198.28,198.07,2.67]
[1761484883415,4.72037155,198.28,198.08,2.67]
[1761484884113,4.72037155,198.29,198.09,2.67]
[1761484885119,4.72037155,198.29,198.15,2.67]
[1761484885818,4.72037155,198.3,198.15,2.67]
[1761484886120,4.5401,198.23,198.15,2.67]
[1761484889523,4.5401,198.23,198.16,2.67]
[1761484891819,4.5401,198.23,198.17,2.67]
[1761484892923,4.72037155,198.3,198.19,2.67]
[1761484893117,4.72037155,198.31,198.19,2.67]
[1761484893312,4.72037155,198.31,198.21,2.67]
[1761484895230,4.72037155,198.3,198.21,2.67]
[1761484904140,6.29382874,198.32,198.21,2.67]
[1761484904141,4.72037155,198.29,198.21,2.67]
[1761484904637,4.72037155,198.3,198.21,2.67]
[1761484906328,4.72037155,198.34,198.22,2.82]
[1761484907642,4.72037155,198.34,198.24,2.82]
[1761484908044,4.72037155,198.35,198.24,2.82]
[1761484908938,4.72037155,198.36,198.24,2.82]
[1761484911941,4.72037155,198.36,198.26,2.82]
[1761484913547,4.72037155,198.36,198.25,2.48]
[1761484913850,4.72037155,198.35,198.25,2.48]
[1761484914250,4.72037155,198.34,198.25,2.48]
[1761484915849,4.72037155,198.35,198.25,2.48]
[1761484916854,4.72037155,198.35,198.25,5.3]
[1761484918356,4.72037155,198.34,198.25,5.3]
[1761484918548,4.72037155,198.35,198.25,5.3]
[1761484919154,4.72037155,198.35,198.26,2.82]
[1761484919555,4.72037155,198.36,198.26,2.82]
[1761484919755,4.72037155,198.35,198.26,2.82]
[1761484920960,4.72037155,198.36,198.26,2.82]
[1761484922059,4.72037155,198.35,198.26,2.82]
[1761484922454,4.72037155,198.36,198.26,2.82]
[1761484923059,4.72037155,198.35,198.26,2.82]
[1761484924461,4.72037155,198.33,198.25,2.48]
[1761484924661,4.72037155,198.34,198.25,2.48]
[1761484925461,4.72037155,198.33,198.25,2.48]
[1761484927457,4.72037155,198.32,198.25,2.48]
[1761484927663,4.72037155,198.29,198.25,2.48]
[1761484927855,4.72037155,198.27,198.25,2.48]
[1761484928364,1.0,198.26,198.25,2.48]
[1761484928865,4.72037155,198.27,198.25,2.48]
[1761484929567,4.51801858,198.26,198.25,2.48]
[1761484936465,4.51801858,198.26,198.23,3.35]
[1761484936665,4.51801858,198.26,198.2,4.16]
[1761484936666,4.72037155,198.24,198.2,4.16]
[1761484936866,4.51801858,198.23,198.2,4.16]
[1761484937060,4.51801858,198.22,198.2,4.16]
[1761484937263,4.51801858,198.23,198.2,4.16]
[1761484937467,4.51801858,198.22,198.2,4.16]
[1761484937669,4.51801858,198.23,198.2,4.16]
[1761484937869,4.51801858,198.22,198.2,4.16]
[1761484938070,4.51801858,198.23,198.2,4.16]
[1761484938270,4.51801858,198.22,198.15,2.7]
[1761484938473,4.51801858,198.23,198.15,2.7]
[1761484938670,4.51801858,198.22,198.15,2.7]
[1761484938873,4.51801858,198.24,198.15,2.7]
[1761484939070,4.51801858,198.23,198.15,2.7]
[1761484939369,4.51801858,198.22,198.15,2.7]
[1761484939569,4.51801858,198.24,198.15,2.7]
[1761484939875,4.51801858,198.23,198.15,2.7]
[1761484940075,4.51801858,198.22,198.16,3.35]
[1761484940374,9.23839013,198.24,198.16,3.35]
[1761484940672,9.23839013,198.23,198.16,3.35]
[1761484940873,4.51801858,198.22,198.16,3.35]
[1761484941061,4.51801858,198.21,198.16,3.35]
[1761484941262,4.51801858,198.22,198.16,6.05]
[1761484941473,4.51801858,198.21,198.16,6.05]
[1761484941674,4.51801858,198.22,198.16,6.05]
[1761484941869,4.51801858,198.21,198.16,6.05]
[1761484942074,4.51801858,198.22,198.16,6.05]
[1761484942276,4.72037155,198.23,198.16,6.05]
[1761484942277,4.51801858,198.21,198.16,6.05]
[1761484942575,4.51801858,198.22,198.16,6.05]
[1761484942770,4.51801858,198.21,198.16,6.05]
[1761484942969,4.51801858,198.22,198.16,6.05]
[1761484943567,4.51801858,198.23,198.16,6.05]
[1761484943764,4.51801858,198.22,198.16,6.05]
[1761484943964,4.51801858,198.23,198.16,6.05]
[1761484944165,4.51801858,198.22,198.16,6.05]
[1761484944366,4.51801858,198.23,198.16,6.05]
[1761484945069,4.51801858,198.23,198.17,2.7]
[1761484945271,4.51801858,198.24,198.17,2.7]
[1761484945571,9.23839013,198.25,198.17,2.7]
[1761484945871,4.51801858,198.24,198.17,2.7]
[1761484946378,9.23839013,198.24,198.17,2.7]
[1761484946573,4.51801858,198.23,198.16,3.35]
[1761484946769,4.72037155,198.24,198.16,3.35]
[1761484947273,4.72037155,198.25,198.16,3.35]
[1761484948672,4.51801858,198.26,198.16,3.35]
[1761484948874,4.69856533,198.22,198.16,3.35]
[1761484949464,9.21658391,198.22,198.16,3.35]
[1761484949666,4.51801858,198.21,198.16,3.35]
[1761484949879,4.69856533,198.2,198.16,3.35]
[1761484951275,4.69856533,198.21,198.16,3.35]
[1761484951574,4.69856533,198.21,198.15,6.22]
[1761484952374,9.21658391,198.22,198.15,6.22]
[1761484952584,4.51801858,198.21,198.15,6.22]
[1761484952779,4.51801858,198.21,198.15,8.92]
[1761484952979,4.51801858,198.22,198.15,8.92]
[1761484953177,9.21658391,198.24,198.15,8.92]
[1761484953974,9.21658391,198.24,198.16,2.7]
[1761484954171,4.51801858,198.23,198.16,2.7]
[1761484954375,4.51801858,198.24,198.16,2.7]
[1761484954582,4.69856533,198.25,198.16,2.7]
[1761484955178,4.69856533,198.25,198.17,3.34]
[1761484955376,4.69856533,198.25,198.18,2.7]
[1761484956179,4.69856533,198.26,198.18,2.7]
[1761484956581,9.21658391,198.26,198.18,2.7]
[1761484956880,4.51801858,198.25,198.18,2.7]
[1761484957084,4.51801858,198.27,198.18,2.7]
[1761484957282,4.69856533,198.29,198.18,2.7]
[1761484957283,9.21658391,198.29,198.18,2.7]
[1761484957790,4.51801858,198.28,198.18,2.7]
[1761484957973,4.69856533,198.29,198.18,2.7]
[1761484959987,9.21658391,198.31,198.18,2.7]
[1761484960183,4.51801858,198.3,198.18,2.7]
[1761484962482,9.21658391,198.3,198.18,2.7]
[1761484962688,4.51801858,198.29,198.18,2.7]
[1761484962889,4.69856533,198.3,198.18,2.7]
[1761484963390,8.99579996,198.3,198.18,2.7]
[1761484963595,4.29723463,198.29,198.18,2.7]
[1761484964489,4.69856533,198.3,198.18,2.7]
[1761484964992,4.29723463,198.3,198.18,2.7]
[1761484966387,8.99579996,198.3,198.18,2.7]
[1761484966588,4.29723463,198.29,198.18,2.7]
[1761484966785,4.29723463,198.3,198.18,2.7]
[1761484966984,4.69856533,198.31,198.18,2.7]
[1761484967190,8.99579996,198.31,198.18,2.7]
[1761484967393,8.99579996,198.3,198.18,2.7]
[1761484967587,4.29723463,198.29,198.18,2.7]
[1761484967784,4.69856533,198.3,198.18,2.7]
[1761484968691,8.99579996,198.3,198.18,2.7]
[1761484968894,4.29723463,198.29,198.18,2.7]
[1761484969596,4.29723463,198.3,198.18,2.7]
[1761484969796,4.69856533,198.31,198.18,2.7]
[1761484970298,8.99579996,198.31,198.18,2.7]
[1761484970494,4.29723463,198.3,198.18,2.7]
[1761484971496,8.99579996,198.3,198.18,2.7]
[1761484971801,4.29723463,198.29,198.18,2.7]
[1761484972706,4.29723463,198.31,198.18,2.7]
[1761484972899,4.69856533,198.32,198.18,2.7]
[1761484973301,8.99579996,198.32,198.18,2.7]
[1761484973502,4.29723463,198.31,198.18,2.7]
[1761484974404,4.69856533,198.32,198.18,2.7]
[1761484974604,8.99579996,198.32,198.18,2.7]
[1761484974794,4.29723463,198.31,198.18,2.7]
[1761484975194,4.69856533,198.32,198.18,2.7]
[1761484975397,8.99579996,198.32,198.18,2.7]
[1761484975599,4.29723463,198.31,198.18,2.7]
[1761484976797,4.69856533,198.32,198.18,2.7]
[1761484977002,8.99579996,198.32,198.18,2.7]
[1761484977199,4.29723463,198.31,198.19,3.34]
[1761484977404,4.69856533,198.32,198.2,2.72]
[1761484977608,8.99579996,198.32,198.2,2.72]
[1761484977807,4.29723463,198.31,198.2,2.72]
[1761484978307,4.69856533,198.32,198.2,2.72]
[1761484979410,4.69856533,198.32,198.21,1.23]
[1761484979706,4.69856533,198.32,198.22,2.72]
[1761484980506,8.99579996,198.33,198.22,2.72]
[1761484980711,4.29723463,198.33,198.22,2.72]
[1761484980905,8.99579996,198.33,198.22,2.72]
[1761484984910,4.69856533,198.32,198.22,2.72]
[1761484985120,8.99579996,198.33,198.22,2.72]
[1761484985415,4.69856533,198.32,198.22,2.72]
[1761484988711,61.22,198.31,198.22,2.72]
[1761484988911,4.29723463,198.3,198.22,2.72]
[1761484989508,61.22,198.31,198.22,2.72]
[1761484989714,4.29126393,198.3,198.22,2.72]
[1761484991613,61.22,198.32,198.22,2.72]
[1761484991816,4.29126393,198.31,198.22,2.72]
[1761484995322,8.98982926,198.32,198.22,2.72]
[1761484997216,4.29126393,198.31,198.22,2.72]
[1761484998322,4.29126393,198.3,198.22,2.72]
[1761485000224,4.29126393,198.29,198.22,2.72]
[1761485000427,4.29126393,198.28,198.22,2.72]
[1761485000725,4.29126393,198.29,198.22,2.72]
[1761485000925,4.29126393,198.28,198.23,3.34]
[1761485001224,4.29126393,198.27,198.24,2.65]
[1761485001523,4.69856533,198.3,198.24,2.65]
[1761485001524,4.29126393,198.29,198.24,2.65]
[1761485001727,4.29126393,198.28,198.24,2.65]
[1761485001923,4.29126393,198.27,198.25,6.22]
[1761485002124,4.29126393,198.29,198.25,8.87]
[1761485002322,4.29126393,198.28,198.25,8.87]
[1761485002527,4.29126393,198.27,198.25,8.87]
[1761485002726,4.29126393,198.28,198.25,8.87]
[1761485003024,4.29126393,198.27,198.25,8.87]
[1761485003226,4.29126393,198.28,198.25,8.87]
[1761485003425,4.29126393,198.27,198.25,8.87]
[1761485003630,4.29126393,198.28,198.25,8.87]
[1761485003928,4.29126393,198.27,198.25,8.87]
[1761485004129,4.29126393,198.28,198.25,8.87]
[1761485004331,4.29126393,198.27,198.25,8.87]
[1761485004533,4.29126393,198.28,198.26,2.65]
[1761485004728,4.29126393,198.29,198.26,2.65]
[1761485005029,4.29126393,198.28,198.26,2.65]
[1761485005230,4.29126393,198.3,198.26,2.65]
[1761485005430,4.29126393,198.29,198.26,2.65]
[1761485005723,4.29126393,198.3,198.25,6.22]
[1761485005928,4.29126393,198.29,198.25,6.22]
[1761485006121,4.29126393,198.28,198.25,6.22]
[1761485006323,4.29126393,198.27,198.25,6.22]
[1761485006525,4.29126393,198.28,198.25,6.22]
[1761485006726,4.29126393,198.27,198.25,6.22]
[1761485006926,4.29126393,198.28,198.25,6.22]
[1761485007227,4.29126393,198.27,198.25,6.22]
[1761485007428,4.29126393,198.28,198.25,6.22]
[1761485007626,4.29126393,198.27,198.25,6.22]
[1761485007832,4.29126393,198.28,198.25,6.22]
[1761485008032,4.29126393,198.27,198.25,6.22]
[1761485008231,4.29126393,198.26,198.25,6.22]
[1761485008534,4.69856533,198.29,198.25,6.22]
[1761485008535,4.29126393,198.28,198.25,6.22]
[1761485008735,4.29126393,198.27,198.25,6.22]
[1761485009036,4.29126393,198.26,198.25,6.22]
[1761485009237,4.29126393,198.28,198.25,6.22]
[1761485009432,4.29126393,198.27,198.25,6.22]
[1761485009635,4.29126393,198.26,198.25,6.22]
[1761485009842,4.29126393,198.28,198.25,6.22]
[1761485010032,4.29126393,198.27,198.25,6.22]
[1761485010233,4.29126393,198.26,198.25,8.87]
[1761485010433,4.29126393,198.28,198.25,8.87]
[1761485010633,4.69856533,198.29,198.25,8.87]
[1761485010931,4.31154145,198.28,198.26,2.65]
[1761485011237,4.31154145,198.27,198.26,2.65]
[1761485012841,4.31154145,198.27,198.25,6.22]
[1761485013042,4.31154145,198.26,198.25,6.22]
[1761485013641,4.31154145,198.26,198.25,8.87]
[1761485014445,4.31154145,198.26,198.25,6.22]
[1761485023556,4.31048577,198.26,198.25,6.22]
[1761485024239,5.31048577,198.26,198.25,6.22]
[1761485028156,4.31048577,198.26,198.25,6.22]
[1761485029156,6.29382874,198.27,198.25,6.22]
[1761485029356,4.30180467,198.26,198.25,6.22]
[1761485030659,9.0183887,198.26,198.25,6.22]
[1761485031250,65.50180467,198.26,198.25,9.02]
[1761485031554,65.50180467,198.26,198.25,6.22]
[1761485034460,65.50180467,198.26,198.25,9.56]
[1761485038164,74.03920891,198.26,198.25,9.56]
[1761485039860,69.32262488,198.26,198.25,9.56]
[1761485040060,74.03920891,198.26,198.25,9.56]
[1761485041667,69.32262488,198.26,198.25,9.56]
[1761485041866,65.50180467,198.26,198.25,9.56]
[1761485042067,69.32236763,198.26,198.25,9.56]
[1761485043269,74.03895166,198.26,198.25,9.56]
[1761485043461,69.32236763,198.26,198.25,9.56]
[1761485043970,74.03895166,198.26,198.25,9.56]
[1761485044869,65.50180467,198.26,198.25,9.56]
[1761485045370,74.0395431,198.26,198.25,9.56]
[1761485050972,75.61678781,198.26,198.25,9.56]
[1761485051972,73.00340778,198.26,198.25,9.56]
[1761485053378,73.00340778,198.26,198.25,0.15501957]
[1761485053677,82.42175391,198.26,198.23,1.24]
[1761485053875,11.80340778,198.25,198.23,1.24]
[1761485054074,11.80340778,198.24,198.14,2.8]
[1761485054276,4.71804403,198.21,198.14,2.8]
[1761485054474,64.88044871,198.2,198.14,2.8]
[1761485054676,7.98225338,198.19,198.14,2.8]
[1761485056068,3.68044871,198.18,198.14,2.8]
[1761485056781,3.68044871,198.18,198.16,2.8]
[1761485059078,7.98225338,198.19,198.16,2.8]
[1761485059280,3.68044871,198.18,198.16,2.8]
[1761485062184,7.98058022,198.18,198.16,2.8]
[1761485062485,7.98058022,198.17,198.16,2.8]
[1761485062680,3.68044871,198.17,198.16,2.8]
[1761485062878,3.68044871,198.18,198.16,2.8]
[1761485066485,3.68044871,198.17,198.16,2.8]
[1761485066685,7.98058022,198.18,198.16,2.8]
[1761485066879,3.68044871,198.17,198.16,2.8]
[1761485067481,3.68044871,198.17,198.15,1.24]
[1761485068088,61.2,198.16,198.15,1.24]
[1761485068284,69.18058022,198.16,198.15,1.24]
[1761485069288,73.89862425,198.16,198.15,1.24]
[1761485069688,69.18058022,198.16,198.15,1.24]
[1761485071093,73.89285705,198.16,198.15,1.24]
[1761485074083,12.69285705,198.16,198.15,4.04]
[1761485074285,43.04058022,198.16,198.15,4.04]
[1761485075295,43.04058022,198.16,198.15,1.24]
[1761485077295,47.84705673,198.16,198.15,1.24]
[1761485077496,46.84705673,198.16,198.15,1.24]
[1761485079199,43.04058022,198.16,198.15,1.24]
[1761485080199,47.74420422,198.16,198.15,1.24]
[1761485082000,12.68420422,198.16,198.15,1.24]
[1761485082301,70.20375551,198.16,198.15,1.24]
[1761485082498,73.88420422,198.16,198.15,1.24]
[1761485085598,7.98058022,198.16,198.15,4.04]
[1761485086607,7.98058022,198.16,198.15,2.8]
[1761485086997,7.98058022,198.16,198.03,2.8]
[1761485088609,7.98058022,198.15,198.04,1.24]
[1761485088801,7.96861194,198.14,198.05,2.8]
[1761485089001,3.68044871,198.13,198.05,2.8]
[1761485089205,7.98746472,198.16,198.05,2.8]
[1761485091208,12.69108872,198.16,198.05,2.8]
[1761485091505,4.30701601,198.15,198.05,2.8]
[1761485093400,7.98746472,198.15,198.05,2.8]
[1761485093605,3.68044871,198.14,198.05,2.8]
[1761485093908,4.30960269,198.18,198.06,2.8]
[1761485094107,3.68044871,198.18,198.06,2.8]
[1761485094406,7.9900514,198.18,198.06,2.8]
[1761485095101,3.68044871,198.17,198.06,2.8]
[1761485095297,7.9900514,198.17,198.06,2.8]
[1761485095496,3.68044871,198.16,198.06,2.8]
[1761485095702,7.9900514,198.16,198.06,2.8]
[1761485095906,7.9900514,198.15,198.06,2.8]
[1761485096102,3.68044871,198.14,198.06,2.8]
[1761485096302,7.99309549,198.18,198.06,2.8]
[1761485096908,3.68044871,198.17,198.06,2.8]
[1761485097403,7.99309549,198.17,198.06,2.8]
[1761485097708,3.68044871,198.16,198.06,2.8]
[1761485098006,4.31264678,198.16,198.06,2.8]
[1761485098195,3.68044871,198.17,198.06,2.8]
[1761485099708,8.38407271,198.16,198.06,2.8]
[1761485099910,7.99309549,198.15,198.06,2.8]
[1761485100107,7.99309549,198.14,198.06,2.8]
[1761485100410,7.99309549,198.13,198.06,2.8]
[1761485100610,3.68044871,198.12,198.06,2.8]
[1761485100810,7.99607045,198.15,198.06,2.8]
[1761485101213,3.68044871,198.14,198.06,2.8]
[1761485101606,7.99607045,198.15,198.06,2.8]
[1761485102109,3.68044871,198.14,198.06,2.8]
[1761485108015,3.68044871,198.13,198.06,2.8]
[1761485108208,3.68044871,198.14,198.06,2.8]
[1761485108409,3.68044871,198.13,198.06,2.8]
[1761485108610,3.68044871,198.14,198.06,2.8]
[1761485108813,3.68044871,198.13,198.06,2.8]
[1761485109211,7.99607045,198.13,198.06,2.8]
[1761485109412,7.99607045,198.12,198.06,2.8]
[1761485109610,8.00117978,198.11,198.06,2.8]
[1761485109811,4.71936744,198.15,198.06,2.8]
[1761485110013,3.70460452,198.14,198.06,2.8]
[1761485110207,3.70460452,198.13,198.06,2.8]
[1761485110418,3.70460452,198.14,198.06,2.8]
[1761485110704,3.70460452,198.13,198.06,2.8]
[1761485110907,3.70460452,198.14,198.06,2.8]
[1761485111111,3.70460452,198.13,198.06,2.8]
[1761485111313,3.70460452,198.12,198.06,2.8]
[1761485111517,3.70460452,198.13,198.06,2.8]
[1761485111715,3.70460452,198.12,198.06,2.8]
[1761485111916,3.70460452,198.13,198.06,2.8]
[1761485112115,3.70460452,198.12,198.06,2.8]
[1761485112418,3.70460452,198.13,198.06,2.8]
[1761485112718,3.70460452,198.12,198.06,2.8]
[1761485112917,3.70460452,198.13,198.06,2.8]
[1761485113218,3.70460452,198.12,198.06,2.8]
[1761485113418,3.70460452,198.13,198.06,2.8]
[1761485113620,3.70460452,198.12,198.06,2.8]
[1761485113818,3.70460452,198.13,198.06,2.8]
[1761485114018,3.70460452,198.12,198.06,2.8]
[1761485114220,3.70460452,198.13,198.06,2.8]
[1761485114419,3.70460452,198.12,198.06,2.8]
[1761485114621,3.70460452,198.13,198.06,2.8]
[1761485114815,3.70460452,198.12,198.06,2.8]
[1761485115016,3.70460452,198.13,198.06,2.8]
[1761485115216,3.70460452,198.12,198.06,2.8]
[1761485115417,3.70460452,198.13,198.06,2.8]
[1761485115718,3.70460452,198.12,198.06,2.8]
[1761485115913,3.70460452,198.13,198.06,2.8]
[1761485116121,3.70460452,198.12,198.06,2.8]
[1761485116311,3.70460452,198.13,198.06,2.8]
[1761485116513,3.70460452,198.12,198.06,2.8]
[1761485116816,3.70460452,198.13,198.06,2.8]
[1761485117017,3.70460452,198.12,198.06,2.8]
[1761485117217,3.70460452,198.13,198.06,2.8]
[1761485117516,3.70460452,198.12,198.06,2.8]
[1761485117717,3.70460452,198.13,198.06,2.8]
[1761485117921,3.70460452,198.12,198.06,2.8]
[1761485118121,4.32049896,198.14,198.06,2.8]
[1761485118122,3.70460452,198.13,198.06,2.8]
[1761485118323,3.70460452,198.12,198.06,2.8]
[1761485118621,3.70460452,198.13,198.06,2.8]
[1761485118817,3.70460452,198.12,198.06,2.8]
[1761485119024,3.70460452,198.13,198.08,2.73]
[1761485119227,4.32049896,198.14,198.08,2.73]
[1761485119412,4.32049896,198.15,198.08,2.73]
[1761485120017,4.71936744,198.17,198.09,2.73]
[1761485120221,4.32049896,198.17,198.09,2.73]
[1761485120418,9.0398664,198.17,198.09,2.73]
[1761485120618,4.32049896,198.16,198.09,2.73]
[1761485120817,4.32049896,198.17,198.09,2.73]
[1761485121616,4.32049896,198.18,198.09,2.73]
[1761485122217,4.71936744,198.19,198.09,2.73]
[1761485122424,9.0398664,198.19,198.09,2.73]
[1761485122621,4.32049896,198.18,198.09,2.73]
[1761485122820,4.71936744,198.19,198.09,2.73]
[1761485123221,9.0398664,198.19,198.09,2.73]
[1761485123426,4.32049896,198.18,198.09,2.73]
[1761485123625,4.71936744,198.19,198.09,2.73]
[1761485124125,4.32049896,198.18,198.09,2.73]
[1761485125932,4.71980901,198.19,198.09,2.73]
[1761485126326,9.04030797,198.19,198.09,2.73]
[1761485126527,4.32049896,198.18,198.09,2.73]
[1761485127533,4.71980901,198.19,198.09,2.73]
[1761485127730,4.32049896,198.18,198.09,2.73]
[1761485128631,9.04030797,198.18,198.09,2.73]
[1761485128822,4.32049896,198.17,198.09,2.73]
[1761485129028,4.32049896,198.18,198.09,2.73]
[1761485129535,9.04030797,198.18,198.09,2.73]
[1761485129736,4.32049896,198.17,198.09,2.73]
[1761485130235,4.71980901,198.18,198.09,2.73]
[1761485130431,4.32049896,198.17,198.09,2.73]
[1761485130636,9.04030797,198.17,198.09,2.73]
[1761485130838,4.32049896,198.16,198.09,2.73]
[1761485131032,4.71980901,198.16,198.09,2.73]
[1761485131238,3.85345905,198.15,198.09,2.73]
[1761485131442,3.85345905,198.14,198.09,2.73]
[1761485131639,3.85345905,198.13,198.09,2.73]
[1761485131838,3.85345905,198.12,198.09,2.73]
[1761485132033,3.85345905,198.11,198.09,2.73]
[1761485132338,3.85345905,198.14,198.09,2.73]
[1761485132544,3.85345905,198.13,198.09,2.73]
[1761485132839,3.85345905,198.12,198.09,2.73]
[1761485133034,3.85345905,198.11,198.09,2.73]
[1761485133237,8.17395801,198.14,198.09,2.73]
[1761485133438,3.85345905,198.13,198.09,2.73]
[1761485133643,3.85345905,198.12,198.09,2.73]
[1761485133941,3.85345905,198.11,198.09,2.73]
[1761485134138,3.85345905,198.13,198.09,2.73]
[1761485134343,3.85345905,198.12,198.09,2.73]
[1761485134542,3.85345905,198.11,198.09,2.73]
[1761485134835,3.85345905,198.13,198.09,2.73]
[1761485135144,3.85345905,198.12,198.09,2.73]
[1761485135440,3.85345905,198.11,198.09,2.73]
[1761485135645,3.85345905,198.14,198.09,2.73]
[1761485135940,3.85345905,198.13,198.09,2.73]
[1761485136141,3.85345905,198.12,198.09,2.73]
[1761485136333,3.85345905,198.14,198.09,2.73]
[1761485136533,3.85345905,198.13,198.09,2.73]
[1761485136839,3.85345905,198.12,198.09,2.73]
[1761485137034,3.85345905,198.14,198.09,2.73]
[1761485137237,3.85345905,198.13,198.09,2.73]
[1761485137531,3.85345905,198.12,198.09,2.73]
[1761485137733,3.85345905,198.11,198.09,2.73]
[1761485137934,3.85345905,198.14,198.1,2.73]
[1761485138134,3.85345905,198.13,198.1,2.73]
[1761485138341,3.85345905,198.12,198.1,2.73]
[1761485138538,4.31000582,198.15,198.1,2.73]
[1761485138539,3.85345905,198.11,198.1,2.73]
[1761485138737,3.85345905,198.14,198.1,2.73]
[1761485138940,3.85345905,198.13,198.1,2.73]
[1761485139243,3.85345905,198.14,198.1,2.73]
[1761485139443,8.16392047,198.17,198.1,2.73]
[1761485139644,3.85345905,198.16,198.1,2.73]
[1761485139943,3.85345905,198.15,198.1,2.73]
[1761485140139,3.85345905,198.16,198.1,2.73]
[1761485140339,3.85345905,198.15,198.1,2.73]
[1761485140539,3.85345905,198.16,198.1,2.73]
[1761485140739,3.85345905,198.15,198.1,2.73]
[1761485140937,3.85345905,198.16,198.1,2.73]
[1761485141233,3.85345905,198.15,198.1,2.73]
[1761485141435,3.85345905,198.16,198.1,2.73]
[1761485141736,3.85345905,198.15,198.1,2.73]
[1761485141938,3.85345905,198.16,198.1,2.73]
[1761485142139,3.85345905,198.15,198.1,2.73]
[1761485142332,3.85345905,198.16,198.1,2.73]
[1761485142544,3.85345905,198.15,198.1,2.73]
[1761485142842,3.85345905,198.16,198.1,2.73]
[1761485143044,3.85345905,198.15,198.1,2.73]
[1761485143242,3.85345905,198.16,198.1,2.73]
[1761485143442,3.85345905,198.15,198.1,2.73]
[1761485143644,3.85345905,198.16,198.1,2.73]
[1761485143843,3.85345905,198.15,198.1,2.73]
[1761485144045,3.85345905,198.16,198.1,2.73]
[1761485144241,3.85345905,198.15,198.1,2.73]
[1761485144440,3.85345905,198.16,198.1,2.73]